bitfinex-derivatives/quotes_SOLF0:USTF0_20250413
["timestamp","ask_amount","ask_price","bid_price","bid_amount"]
[1744509436943,0.05279155,131.23,131.2,0.05004181]
[1744509437140,26.22656036,131.23,131.2,0.05004181]
[1744509437347,7.6227,131.21,131.2,0.05004181]
[1744509437651,26.22656036,131.23,131.14,7.6267]
[1744509437947,7.6227,131.21,131.13,2.0943]
[1744509438148,2.0961,131.22,131.13,2.0943]
[1744509438450,4.0697,131.25,131.13,28.26806881]
[1744509438639,0.05266637,131.19,131.16,0.05187578]
[1744509438838,605.6561,131.27,131.16,26.17376881]
[1744509439041,104.32281227,131.27,131.19,26.17376881]
[1744509439248,104.32281227,131.27,131.24,7.6204]
[1744509439451,104.32281227,131.27,131.2,360.1479]
[1744509439941,0.04974263,131.25,131.22,0.05418527]
[1744509440545,104.32281227,131.27,131.22,0.05418527]
[1744509441052,2.1492,131.34,131.22,0.05418527]
[1744509441250,5.41637125,131.32,131.2,360.1479]
[1744509441451,5.41637125,131.32,131.22,26.17376881]
[1744509441645,0.05420933,131.28,131.26,0.05142119]
[1744509441846,7.6158,131.33,131.22,26.17376881]
[1744509442046,0.05673526,131.28,131.26,0.05446819]
[1744509442244,7.6158,131.33,131.26,0.05446819]
[1744509442442,0.05845535,131.28,131.26,0.05446819]
[1744509442644,2.1492,131.34,131.22,384.17376881]
[1744509442848,0.05372224,131.28,131.26,0.05112304]
[1744509443150,0.04880651,131.28,131.26,0.04851309]
[1744509443555,707.96281227,131.39,131.26,365.66851309]
[1744509443749,5.43023394,131.38,131.26,358.0]
[1744509443948,5.43023394,131.37,131.28,26.17376881]
[1744509444149,710.01011227,131.39,131.29,2.0234]
[1744509444453,5.433861,131.38,131.29,2.0234]
[1744509444654,113.98241227,131.39,131.34,7.6151]
[1744509445053,0.05524625,131.38,131.35,0.04810319]
[1744509446454,0.05524625,131.38,131.35,7.66250319]
[1744509447154,0.05524625,131.38,131.35,0.04810319]
[1744509448153,0.05524625,131.38,131.37,7.6134]
[1744509448355,0.05524625,131.38,131.35,0.04810319]
[1744509448654,0.05524625,131.38,131.37,7.6134]
[1744509449148,67.76,131.46,131.35,0.04810319]
[1744509449450,7.609,131.45,131.4,7.6115]
[1744509449655,5.41556384,131.44,131.32,1031.1619]
[1744509449855,93.93376881,131.46,131.32,1031.1619]
[1744509450053,5.41558734,131.45,131.32,1031.1619]
[1744509450255,0.05663406,131.4,131.38,0.0557964]
[1744509450456,26.17376881,131.43,131.38,0.0557964]
[1744509450657,0.04831345,131.4,131.38,0.0557964]
[1744509455561,7.6122,131.39,131.38,0.0557964]
[1744509456056,0.04831345,131.4,131.38,0.0557964]
[1744509456262,7.66021345,131.4,131.38,0.0557964]
[1744509456562,0.04831345,131.4,131.38,0.0557964]
[1744509457155,7.66051345,131.4,131.38,0.0557964]
[1744509457564,0.04831345,131.4,131.38,0.0557964]
[1744509457766,7.66021345,131.4,131.38,0.0557964]
[1744509457963,0.04831345,131.4,131.38,0.0557964]
[1744509458164,26.22208226,131.4,131.38,0.0557964]
[1744509458462,7.6122,131.39,131.38,0.0557964]
[1744509458668,26.22208226,131.4,131.3,2.11]
[1744509458857,4.1376,131.41,131.3,2.11]
[1744509459365,7.6133,131.38,131.33,7.6153]
[1744509459868,0.05370042,131.37,131.34,0.0521602]
[1744509461170,0.05370042,131.37,131.36,7.614]
[1744509464273,0.05370042,131.37,131.35,7.6144]
[1744509464472,0.05370042,131.37,131.34,0.0521602]
[1744509464672,0.05370042,131.37,131.34,7.6671602]
[1744509464973,0.05370042,131.37,131.34,0.0521602]
[1744509465275,0.05370042,131.37,131.35,7.6142]
[1744509465475,0.05370042,131.37,131.34,0.0521602]
[1744509465775,0.05370042,131.37,131.34,7.6667602]
[1744509465976,0.05370042,131.37,131.34,0.0521602]
[1744509466274,0.05370042,131.37,131.34,7.6670602]
[1744509466672,0.05370042,131.37,131.34,0.0521602]
[1744509466878,7.6146,131.35,131.34,0.0521602]
[1744509467178,0.05370042,131.37,131.34,0.0521602]
[1744509467378,0.05370042,131.37,131.35,7.614]
[1744509467581,0.05370042,131.37,131.34,0.0521602]
[1744509467974,0.05370042,131.37,131.36,7.614]
[1744509470283,3.9823,131.43,131.39,7.6118]
[1744509471382,0.05854253,131.42,131.4,0.05837844]
[1744509472478,0.05854253,131.42,131.4,0.00467802]
[1744509472685,5.39998992,131.41,131.29,4.0646]
[1744509472881,7.6141,131.36,131.32,7.6158]
[1744509473684,7.6141,131.36,131.33,0.05390297]
[1744509473685,0.05560016,131.35,131.33,0.05390297]
[1744509476485,0.05560016,131.35,131.33,7.66940297]
[1744509476893,0.05560016,131.35,131.33,0.05390297]
[1744509477082,7.67060016,131.35,131.33,0.05390297]
[1744509477287,0.05560016,131.35,131.33,0.05390297]
[1744509478890,16.13180596,131.35,131.26,64.48]
[1744509479089,16.0762058,131.35,131.26,66.5412]
[1744509479286,7.6154,131.34,131.3,7.6171]
[1744509479590,16.0762058,131.38,131.26,66.5412]
[1744509479885,5.44243895,131.37,131.31,0.05551143]
[1744509480091,5.44243895,131.36,131.31,0.05551143]
[1744509480390,5.49527702,131.35,131.31,0.05551143]
[1744509480592,5.44243895,131.34,131.31,0.05551143]
[1744509480785,7.6153,131.34,131.31,0.05551143]
[1744509481292,7.66763807,131.35,131.31,7.67241143]
[1744509481590,5.44446284,131.34,131.31,7.67241143]
[1744509482386,0.05283807,131.35,131.31,0.05551143]
[1744509482790,7.6163,131.32,131.31,0.05551143]
[1744509482990,5.44346068,131.32,131.27,7.619]
[1744509483182,16.0762058,131.34,131.26,64.48]
[1744509483381,5.43924502,131.33,131.23,3.954]
[1744509483592,4.1617,131.36,131.21,422.7726]
[1744509483593,16.0762058,131.31,131.21,422.7726]
[1744509483790,7.44134502,131.3,131.21,422.7726]
[1744509483986,0.05284915,131.27,131.25,7.6202]
[1744509484192,4.915e-05,131.27,131.25,16.0762058]
[1744509484793,4.915e-05,131.27,131.26,7.6198]
[1744509484996,5.43454373,131.34,131.25,23.6962058]
[1744509485186,62.68,131.39,131.25,23.6962058]
[1744509485187,7.6171,131.31,131.25,374.0762058]
[1744509485498,16.0762058,131.34,131.25,358.0]
[1744509485693,9.57283953,131.33,131.25,358.0]
[1744509485995,62.68,131.39,131.25,374.0762058]
[1744509486199,0.05228847,131.3,131.28,0.04948446]
[1744509486387,7.6143,131.36,131.32,7.6162]
[1744509486696,5.49196891,131.35,131.32,7.6162]
[1744509486996,0.05740567,131.35,131.33,0.04947077]
[1744509487196,1.9809,131.38,131.28,2.0462]
[1744509487498,0.05074328,131.35,131.33,0.0522921]
[1744509487697,7.66584328,131.35,131.33,0.0522921]
[1744509488492,13.0500304,131.34,131.33,0.0522921]
[1744509488688,5.4349304,131.34,131.25,358.0]
[1744509489091,5.4349304,131.33,131.28,7.6181]
[1744509489697,0.05649192,131.32,131.29,0.05667112]
[1744509490394,21.50970715,131.31,131.22,62.7]
[1744509490593,9.51690135,131.3,131.22,62.7]
[1744509490892,4.0834,131.3,131.22,62.7]
[1744509491295,7.6181,131.29,131.24,7.6205]
[1744509491496,0.05791156,131.28,131.25,0.05176715]
[1744509493096,0.05791156,131.28,131.27,7.6192]
[1744509494796,0.05791156,131.28,131.25,0.05176715]
[1744509495803,0.05791156,131.28,131.25,7.67166715]
[1744509496002,0.05791156,131.28,131.25,0.05176715]
[1744509496202,0.05791156,131.28,131.27,7.6192]
[1744509497705,0.05791156,131.28,131.25,0.05176715]
[1744509498706,7.6214,131.24,131.19,7.6236]
[1744509498901,26.15865319,131.26,131.17,62.7]
[1744509499099,5.41794884,131.25,131.17,62.7]
[1744509499400,5.41794884,131.25,131.15,3.9819]
[1744509499605,26.15865319,131.23,131.15,3.9819]
[1744509499805,0.05139783,131.21,131.19,0.05516799]
[1744509503409,0.05139783,131.21,131.2,7.6233]
[1744509505908,0.05139783,131.21,131.19,7.67876799]
[1744509506109,0.05139783,131.21,131.19,0.05516799]
[1744509507710,7.6233,131.2,131.19,0.05516799]
[1744509508513,0.05139783,131.21,131.19,0.05516799]
[1744509509110,7.6233,131.2,131.19,0.05516799]
[1744509509311,0.05139783,131.21,131.19,0.05516799]
[1744509510415,0.05139783,131.21,131.19,7.67886799]
[1744509510710,0.05139783,131.21,131.19,0.05516799]
[1744509511412,0.05139783,131.21,131.19,7.67896799]
[1744509511808,0.05139783,131.21,131.19,0.05516799]
[1744509513014,0.05139783,131.21,131.19,7.67866799]
[1744509513614,0.05139783,131.21,131.19,0.05516799]
[1744509514414,0.05139783,131.21,131.19,7.67896799]
[1744509514616,0.05139783,131.21,131.19,0.05516799]
[1744509516424,0.05139783,131.21,131.19,7.67896799]
[1744509516625,0.05139783,131.21,131.19,0.05516799]
[1744509517023,0.05139783,131.21,131.2,7.6233]
[1744509518824,16.11333361,131.3,131.19,0.05516799]
[1744509519031,88.00138609,131.31,131.19,430.53333361]
[1744509519221,95.61858609,131.31,131.19,430.53333361]
[1744509519423,88.00138609,131.31,131.19,430.53333361]
[1744509519828,7.618,131.29,131.25,7.6201]
[1744509520025,0.04965196,131.26,131.25,7.6201]
[1744509521923,0.04965196,131.26,131.24,7.67662596]
[1744509522623,0.04965196,131.26,131.17,4.2024]
[1744509522826,7.6219,131.23,131.17,4.2024]
[1744509523027,56.933,131.26,131.17,4.2024]
[1744509523227,5.40714229,131.25,131.17,4.2024]
[1744509523427,7.44154229,131.25,131.17,4.2024]
[1744509523727,7.44154229,131.25,131.18,7.6241]
[1744509523728,2.0344,131.25,131.18,7.6241]
[1744509523929,0.05552642,131.22,131.2,0.05013878]
[1744509524329,0.05552642,131.22,131.2,7.67303878]
[1744509524719,0.05552642,131.22,131.2,0.05013878]
[1744509525233,0.05552642,131.22,131.2,7.67303878]
[1744509525623,0.05552642,131.22,131.2,0.05013878]
[1744509525829,0.05552642,131.22,131.21,7.6227]
[1744509526131,0.05552642,131.22,131.2,0.05013878]
[1744509526132,4.0614,131.29,131.2,0.05013878]
[1744509526330,9.6877,131.3,131.26,7.6197]
[1744509526828,104.32281227,131.31,131.29,7.6179]
[1744509527225,104.32281227,131.31,131.29,7.67655146]
[1744509527425,0.05563655,131.31,131.29,7.67655146]
[1744509527621,0.05563655,131.31,131.3,7.6175]
[1744509528030,104.32281227,131.35,131.33,7.6152]
[1744509528230,104.32281227,131.35,131.26,374.11333361]
[1744509528734,104.32281227,131.35,131.33,7.6154]
[1744509528930,7.6137,131.37,131.33,7.6154]
[1744509529231,0.0505837,131.36,131.34,0.05436835]
[1744509532334,7.6649837,131.36,131.34,0.05436835]
[1744509532635,0.0505837,131.36,131.34,0.05436835]
[1744509533029,7.6146,131.35,131.34,0.05436835]
[1744509534138,0.0505837,131.36,131.34,0.05436835]
[1744509535340,0.0505837,131.36,131.34,7.66906835]
[1744509535539,0.0505837,131.36,131.34,0.05436835]
[1744509535941,0.0505837,131.36,131.35,7.6146]
[1744509543348,8.37e-05,131.36,131.35,7.6146]
[1744509546451,8.37e-05,131.36,131.34,7.66926835]
[1744509546755,7.6143837,131.36,131.34,0.05436835]
[1744509547751,7.6146,131.35,131.34,0.05436835]
[1744509548257,23.73333361,131.35,131.26,2.0686]
[1744509548456,55.4157,131.34,131.26,2.0686]
[1744509548855,63.0309,131.34,131.3,7.6172]
[1744509549454,0.05093997,131.33,131.31,0.04922932]
[1744509550853,0.05093997,131.33,131.32,7.6163]
[1744509551756,49.8,131.38,131.36,7.6137]
[1744509551959,7.6114,131.41,131.36,7.6137]
[1744509552862,0.05498405,131.4,131.37,0.04902689]
[1744509556062,7.6127,131.39,131.37,0.04902689]
[1744509556463,0.05498405,131.4,131.37,0.04902689]
[1744509557172,7.6123,131.39,131.37,0.04902689]
[1744509558465,7.6128,131.38,131.37,0.04902689]
[1744509558866,0.05498405,131.4,131.37,0.04902689]
[1744509559066,7.6126,131.39,131.37,0.04902689]
[1744509559868,7.6128,131.38,131.37,0.04902689]
[1744509560271,0.05498405,131.4,131.37,0.04902689]
[1744509560570,7.66698405,131.4,131.37,0.04902689]
[1744509561371,7.6125,131.39,131.37,0.04902689]
[1744509561571,0.05498405,131.4,131.37,0.04902689]
[1744509562168,5.41204614,131.39,131.37,0.04902689]
[1744509562374,13.02464614,131.39,131.37,0.04902689]
[1744509562671,7.6126,131.39,131.37,0.04902689]
[1744509566277,5.42320189,131.38,131.37,0.04902689]
[1744509567277,13.03600189,131.38,131.37,0.04902689]
[1744509567679,13.03759498,131.38,131.37,0.04902689]
[1744509568681,5.42479498,131.38,131.37,0.04902689]
[1744509570979,5.42479498,131.39,131.37,0.04902689]
[1744509571180,5.42479498,131.38,131.37,7.66242689]
[1744509571379,5.45247431,131.38,131.37,7.66242689]
[1744509571575,5.45247431,131.39,131.37,7.66242689]
[1744509571779,5.45247431,131.38,131.37,7.66242689]
[1744509572179,0.05498405,131.4,131.37,7.66242689]
[1744509572382,5.45503805,131.39,131.37,7.66242689]
[1744509572575,5.45503805,131.38,131.37,7.66242689]
[1744509572774,0.05498405,131.4,131.37,7.66242689]
[1744509572976,5.45519901,131.39,131.38,7.6128]
[1744509573983,0.05498405,131.4,131.37,0.04902689]
[1744509574183,5.45258711,131.39,131.37,0.04902689]
[1744509574483,5.45258711,131.39,131.38,7.6128]
[1744509574673,5.45275163,131.39,131.38,7.6128]
[1744509574877,5.45275163,131.39,131.37,0.04902689]
[1744509575485,7.6124,131.39,131.37,0.04902689]
[1744509575782,5.45039242,131.38,131.37,0.04902689]
[1744509576180,13.06319242,131.38,131.37,0.04902689]
[1744509577977,5.45039242,131.38,131.37,0.04902689]
[1744509580082,5.45516619,131.38,131.37,0.04902689]
[1744509580285,13.06796619,131.38,131.37,0.04902689]
[1744509580586,5.45516619,131.38,131.37,0.04902689]
[1744509581986,5.45641764,131.38,131.37,0.04902689]
[1744509583489,5.45625514,131.38,131.37,0.04902689]
[1744509584983,13.06905514,131.38,131.37,0.04902689]
[1744509586288,5.45625514,131.38,131.37,0.04902689]
[1744509588790,5.45329902,131.38,131.37,0.04902689]
[1744509590994,5.45330704,131.38,131.37,0.04902689]
[1744509591790,19.49551678,131.38,131.37,0.04902689]
[1744509592188,13.06610704,131.38,131.37,0.04902689]
[1744509592388,19.49556135,131.38,131.37,0.04902689]
[1744509592894,5.45335161,131.38,131.37,0.04902689]
[1744509593794,5.45335161,131.38,131.37,7.66242689]
[1744509593994,0.05498405,131.4,131.37,6.47843663]
[1744509594197,5.45690448,131.39,131.37,6.47843663]
[1744509594388,0.05498405,131.4,131.39,7.6122]
[1744509594584,5.51381982,131.4,131.39,7.6122]
[1744509594788,5.51381982,131.4,131.38,7.6126]
[1744509594992,5.45883577,131.39,131.38,7.6126]
[1744509595496,5.45883577,131.39,131.37,14.09153663]
[1744509595695,5.46005914,131.38,131.37,0.04902689]
[1744509599095,13.07285914,131.38,131.37,0.04902689]
[1744509600898,13.07149565,131.38,131.37,0.04902689]
[1744509601298,5.45869565,131.38,131.37,0.04902689]
[1744509602396,11.88810539,131.38,131.37,0.04902689]
[1744509602598,19.50810539,131.38,131.22,15.2438]
[1744509602799,6.42940974,131.31,131.24,6.42940974]
[1744509603095,5.45866529,131.3,131.24,6.42940974]
[1744509603297,43.74,131.32,131.26,6.42940974]
[1744509603604,5.4544355,131.31,131.26,6.42940974]
[1744509603799,5.50816122,131.3,131.28,7.66863099]
[1744509603998,0.05372572,131.3,131.28,0.05013099]
[1744509604201,0.05372572,131.3,131.28,6.47954073]
[1744509604503,0.05372572,131.3,131.29,7.618]
[1744509605000,653.08940974,131.36,131.28,6.47954073]
[1744509605303,5.44982144,131.35,131.29,4.2207]
[1744509605504,5.44982144,131.34,131.33,7.6157]
[1744509605796,5.45027927,131.34,131.33,7.6157]
[1744509606005,104.32281227,131.4,131.39,7.6122]
[1744509606207,173.87135379,131.41,131.39,10.05003097]
[1744509606401,27.38048778,131.44,131.41,10.05003097]
[1744509606798,27.38048778,131.44,131.43,17.65993097]
[1744509606799,3.31748778,131.44,131.43,17.65993097]
[1744509606998,2.12298778,131.44,131.43,7.6099]
[1744509608906,0.05585153,131.45,131.44,7.6094]
[1744509613906,5.153e-05,131.45,131.44,7.6094]
[1744509614903,5.153e-05,131.45,131.44,17.65943097]
[1744509615108,10.05003097,131.57,131.46,10.05003097]
[1744509615308,10.05003097,131.57,131.47,42.16]
[1744509615605,7.6025,131.56,131.47,42.16]
[1744509616108,0.05555897,131.52,131.51,7.6053]
[1744509618008,5.897e-05,131.52,131.51,7.6053]
[1744509619014,5.897e-05,131.52,131.51,49.7453]
[1744509620712,5.897e-05,131.52,131.51,7.6053]
[1744509621014,5.897e-05,131.52,131.5,365.66101868]
[1744509621210,5.897e-05,131.52,131.5,354.81511868]
[1744509621407,5.897e-05,131.52,131.51,59.79533097]
[1744509621618,2.1056,131.58,131.51,52.19003097]
[1744509621810,2.1056,131.58,131.57,7.6018]
[1744509622318,2.1056,131.58,131.51,407.00514965]
[1744509622816,0.05744771,131.56,131.53,0.05064204]
[1744509623017,0.05744771,131.56,131.55,7.603]
[1744509623816,4.771e-05,131.56,131.55,7.603]
[1744509624016,4.771e-05,131.56,131.55,49.723]
[1744509627218,4.771e-05,131.56,131.55,404.53811868]
[1744509627516,4.771e-05,131.56,131.55,414.58814965]
[1744509627921,9.6019,131.64,131.6,7.6]
[1744509628218,7.5988,131.63,131.55,406.98514965]
[1744509628425,7.5988,131.63,131.59,7.6001]
[1744509628621,7.5988,131.63,131.55,406.98514965]
[1744509628622,2.0039,131.64,131.55,406.98514965]
[1744509628827,9.6019,131.64,131.55,406.98514965]
[1744509629025,0.05763484,131.61,131.58,0.0495837]
[1744509629226,0.05763484,131.61,131.6,7.5997]
[1744509630124,0.05763484,131.61,131.58,0.0495837]
[1744509630631,0.05763484,131.61,131.6,7.6001]
[1744509633929,6.1383,131.67,131.64,7.5974]
[1744509634327,13.7347,131.67,131.59,50.73003097]
[1744509634933,6.1383,131.67,131.59,50.73003097]
[1744509635332,0.05436668,131.64,131.63,7.5984]
[1744509638335,0.05436668,131.64,131.62,0.05319664]
[1744509639638,0.05436668,131.64,131.63,7.5984]
[1744509641640,0.05436668,131.64,131.63,48.2584]
[1744509644143,6.668e-05,131.64,131.63,48.2584]
[1744509644341,1.9622,131.72,131.68,7.595]
[1744509644645,7.5938,131.71,131.63,50.71003097]
[1744509644944,1.9622,131.72,131.65,10.05003097]
[1744509645143,50.71003097,131.77,131.65,10.05003097]
[1744509645346,0.05812261,131.72,131.7,0.05399373]
[1744509645645,0.05773324,131.72,131.7,0.05399373]
[1744509645844,7.65123324,131.72,131.7,0.05399373]
[1744509646448,0.05773324,131.72,131.7,0.05399373]
[1744509647148,0.05773324,131.72,131.68,7.5954]
[1744509647347,0.05773324,131.72,131.65,354.81511868]
[1744509647849,7.65103324,131.72,131.65,354.81511868]
[1744509648044,10.10776421,131.72,131.67,0.05861593]
[1744509648451,7.5947,131.7,131.67,0.05861593]
[1744509648645,10.10776421,131.72,131.67,0.05861593]
[1744509648950,7.5954,131.69,131.65,362.41181868]
[1744509649250,2.1305,131.68,131.65,362.41181868]
[1744509649456,2.1305,131.68,131.64,16.54597065]
[1744509650150,0.04948361,131.67,131.65,0.05246936]
[1744509651349,10.05003097,131.66,131.65,0.05246936]
[1744509651652,15.32341028,131.66,131.62,2.47097065]
[1744509651855,17.64703097,131.66,131.62,10.06947065]
[1744509652154,19.70243097,131.66,131.62,10.06947065]
[1744509652541,7.5972,131.65,131.62,10.06947065]
[1744509652746,12.10543097,131.66,131.63,0.05659911]
[1744509653153,5.27893251,131.65,131.63,0.05659911]
[1744509655159,0.04948361,131.67,131.63,0.05659911]
[1744509655660,0.04948361,131.67,131.66,7.5966]
[1744509660860,10.05003097,131.74,131.66,140.53379416]
[1744509661158,5.29910201,131.73,131.67,39.68]
[1744509661361,5.29910201,131.72,131.71,7.5938]
[1744509661660,5.29910201,131.73,131.67,39.68]
[1744509661856,5.29910201,131.72,131.67,39.68]
[1744509662058,6.989e-05,131.71,131.69,10.10653148]
[1744509662260,5.30075805,131.74,131.7,10.05003097]
[1744509662466,2.0545,131.76,131.71,39.68]
[1744509662658,5.30068145,131.75,131.71,39.68]
[1744509662965,2.0545,131.76,131.71,39.68]
[1744509663358,0.05017109,131.75,131.72,0.05236785]
[1744509663559,0.05017109,131.75,131.74,7.592]
[1744509663765,0.05017109,131.75,131.74,17.64203097]
[1744509664159,7.109e-05,131.75,131.74,17.64203097]
[1744509665160,7.109e-05,131.75,131.74,7.592]
[1744509665864,7.109e-05,131.75,131.74,47.252]
[1744509666162,7.109e-05,131.75,131.74,57.30203097]
[1744509666861,4.1389,131.83,131.74,57.31003097]
[1744509667061,4.1389,131.83,131.77,10.05003097]
[1744509667263,2.0045,131.86,131.78,39.66]
[1744509667464,2.0045,131.86,131.79,10.05003097]
[1744509667861,2.0045,131.86,131.85,7.5857]
[1744509668057,0.05178388,131.84,131.81,39.66]
[1744509668268,5.2932605,131.85,131.84,0.04782678]
[1744509668455,5.2932605,131.85,131.81,39.66]
[1744509668655,2.0096,131.84,131.77,354.81511868]
[1744509668859,2.0096,131.84,131.78,39.66]
[1744509669262,2.0096,131.84,131.77,354.81511868]
[1744509669465,10.05003097,131.82,131.73,354.81511868]
[1744509669665,10.10568584,131.82,131.79,0.05829638]
[1744509669862,10.05003097,131.82,131.75,39.66]
[1744509670063,10.10641377,131.82,131.79,7.64142897]
[1744509670263,0.0563828,131.82,131.79,7.64142897]
[1744509670665,10.10641377,131.82,131.79,0.05242897]
[1744509670867,10.10641377,131.82,131.75,39.66]
[1744509671066,10.10641377,131.82,131.71,26.66011351]
[1744509671369,5.28269439,131.81,131.76,7.5905]
[1744509671670,7.5886,131.8,131.76,7.5905]
[1744509672173,0.05018618,131.79,131.77,7.64703174]
[1744509672368,10.05003097,131.83,131.77,0.05673174]
[1744509672569,0.05239152,131.79,131.77,0.05673174]
[1744509672769,10.05003097,131.81,131.77,0.05673174]
[1744509672969,0.04911578,131.79,131.77,0.05673174]
[1744509673466,0.04911578,131.79,131.77,7.64663174]
[1744509675168,0.04911578,131.79,131.78,7.5897]
[1744509678675,0.04911578,131.79,131.77,0.05673174]
[1744509678883,0.04911578,131.79,131.71,10.05003097]
[1744509679180,1.9865,131.81,131.73,10.05003097]
[1744509679679,1.9865,131.81,131.79,7.5891]
[1744509679874,2.03666647,131.81,131.79,0.05807179]
[1744509680380,9.62506647,131.81,131.79,0.05807179]
[1744509680884,2.03666647,131.81,131.79,0.05807179]
[1744509682282,7.5886,131.8,131.79,0.05807179]
[1744509682484,7.5886,131.8,131.77,39.64]
[1744509682485,5.27700479,131.8,131.71,10.05003097]
[1744509682688,15.32703576,131.8,131.72,39.64]
[1744509682884,1.9865,131.81,131.73,10.05003097]
[1744509683090,1.9865,131.81,131.75,10.05003097]
[1744509683279,2.0567,131.83,131.79,10.05003097]
[1744509683478,2.0096,131.84,131.79,10.05003097]
[1744509683684,0.05763346,131.82,131.8,0.05109977]
[1744509685087,7.64553346,131.82,131.8,0.05109977]
[1744509685289,7.64553346,131.82,131.78,47.2295]
[1744509685584,0.05763346,131.82,131.73,39.64]
[1744509685787,5.27699212,131.81,131.73,39.64]
[1744509686288,5.27699212,131.81,131.76,0.05384439]
[1744509686289,0.05327418,131.78,131.76,0.05384439]
[1744509686788,0.05327418,131.78,131.72,39.64]
[1744509687087,15.97112804,131.8,131.7,640.86]
[1744509687292,5.27602524,131.79,131.7,640.86]
[1744509687584,39.64,131.82,131.7,640.86]
[1744509687585,2.1038,131.78,131.7,640.86]
[1744509687785,5.27678609,131.77,131.68,354.81511868]
[1744509687991,0.04970058,131.75,131.73,0.05274792]
[1744509688287,0.04970058,131.75,131.73,0.04789272]
[1744509688885,7.64140058,131.75,131.73,0.04789272]
[1744509690283,0.04970058,131.75,131.73,0.04789272]
[1744509691386,7.64120058,131.75,131.73,0.04789272]
[1744509692590,0.04970058,131.75,131.73,0.04789272]
[1744509693190,0.04970058,131.75,131.74,7.592]
[1744509693991,5.8e-07,131.75,131.74,7.592]
[1744509694195,4.1363,131.82,131.74,63.73112804]
[1744509694391,2.0118,131.85,131.77,15.97112804]
[1744509694593,2.0477,131.86,131.78,40.16]
[1744509694896,2.0118,131.88,131.78,40.16]
[1744509695294,0.04995837,131.84,131.83,7.5868]
[1744509695495,9.596,131.88,131.83,7.5868]
[1744509695692,0.05579057,131.85,131.82,0.05652188]
[1744509695896,0.05579057,131.85,131.84,7.5861]
[1744509696198,0.05579057,131.85,131.82,0.05652188]
[1744509696795,7.5868,131.83,131.82,0.05652188]
[1744509697896,7.5868,131.83,131.78,7.5895]
[1744509697897,7.5881,131.81,131.74,40.14]
[1744509698200,4.1533,131.84,131.77,7.5898]
[1744509698399,5.29276573,131.83,131.74,40.14]
[1744509698900,7.5876,131.82,131.77,7.5899]
[1744509699099,0.05152753,131.8,131.77,0.04877023]
[1744509700404,5.3516444,131.8,131.77,0.04877023]
[1744509700697,0.05152753,131.8,131.77,0.04877023]
[1744509700898,0.05152753,131.8,131.78,7.5893]
[1744509701094,0.05152753,131.8,131.77,0.04877023]
[1744509701498,0.05152753,131.8,131.79,7.5891]
[1744509702404,47.7243,131.88,131.83,7.5865]
[1744509702603,5.30618221,131.87,131.83,7.5865]
[1744509703007,12.89078221,131.87,131.83,7.5865]
[1744509703304,5.30618221,131.86,131.81,40.14]
[1744509703502,0.0507558,131.86,131.84,0.05460367]
[1744509704197,12.89265473,131.85,131.8,7.5885]
[1744509704401,5.30695473,131.84,131.78,40.14]
[1744509704602,7.5886,131.8,131.74,354.81511868]
[1744509704903,6.2599,131.85,131.77,7.5903]
[1744509705104,5.30628898,131.84,131.77,7.5903]
[1744509705305,5.30628898,131.83,131.77,7.5903]
[1744509705504,5.36183006,131.82,131.79,0.05209046]
[1744509705706,5.30628898,131.81,131.79,0.05209046]
[1744509706305,12.89448898,131.81,131.79,0.05209046]
[1744509706505,5.30628898,131.8,131.79,0.05209046]
[1744509707305,7.5894,131.79,131.75,7.591]
[1744509707504,40.14,131.82,131.73,40.14]
[1744509707711,5.30943083,131.81,131.73,40.14]
[1744509707900,5.30943083,131.8,131.77,7.5898]
[1744509708099,5.30943083,131.8,131.73,40.14]
[1744509708399,0.05429305,131.78,131.75,0.04895523]
[1744509709295,0.05429305,131.78,131.76,7.5904]
[1744509710107,0.05429305,131.78,131.77,7.5903]
[1744509710506,0.05429305,131.78,131.75,0.04895523]
[1744509710699,0.05429305,131.78,131.76,7.5905]
[1744509712302,0.05429305,131.78,131.77,7.5903]
[1744509713607,0.05429305,131.78,131.76,7.5908]
[1744509713807,0.05429305,131.78,131.75,0.04895523]
[1744509714504,0.05429305,131.78,131.77,7.5903]
[1744509716211,0.05429305,131.78,131.75,0.04895523]
[1744509716708,0.05429305,131.78,131.77,7.5903]
[1744509719507,0.05429305,131.78,131.76,7.5906]
[1744509720312,0.05429305,131.78,131.77,7.5903]
[1744509720514,0.05429305,131.78,131.75,0.04895523]
[1744509720908,38.74,131.84,131.75,16.02008327]
[1744509721110,5.31669339,131.83,131.75,15.97112804]
[1744509721306,38.74,131.87,131.84,7.5863]
[1744509721508,364.0,131.98,131.78,15.97112804]